bitfinex/quotes_ETHUSD_20241116
["timestamp","ask_amount","ask_price","bid_price","bid_amount"]
[1731725154485,3.21419,3111.2,3111.1,0.875]
[1731725154655,3.21405,3111.4,3111.1,0.875]
[1731725154843,3.21409,3111.3,3111.1,0.875]
[1731725155043,3.21419,3111.2,3111.1,0.875]
[1731725155268,3.21403,3111.4,3111.1,0.875]
[1731725155482,3.21406,3111.4,3111.1,0.875]
[1731725155693,3.21408,3111.4,3111.1,0.875]
[1731725156451,3.21386,3111.6,3111.1,0.875]
[1731725157167,3.21389,3111.5,3111.1,0.875]
[1731725157505,3.21371,3111.7,3111.1,0.875]
[1731725157506,3.21398,3111.4,3111.1,0.875]
[1731725158748,3.21419,3111.2,3111.1,0.875]
[1731725160856,4.04602,3112.1,3111.1,0.875]
[1731725161098,4.45208633,3113.5,3111.1,0.875]
[1731725161099,3.21408,3111.4,3111.1,0.875]
[1731725161769,0.8327,3112.3,3111.5,0.7638]
[1731725162095,3.21299,3112.4,3111.8,0.7638]
[1731725162394,3.21307,3112.3,3111.8,0.7638]
[1731725162595,3.21306,3112.3,3111.8,0.7638]
[1731725162810,3.25009058,3112.2,3111.8,0.7638]
[1731725162986,0.36193964,3112.2,3111.4,0.7638]
[1731725163193,0.8327,3112.1,3111.4,0.7638]
[1731725163502,3.21391,3111.5,3111.1,1.6388]
[1731725163860,0.03652083,3111.4,3111.1,1.6388]
[1731725164398,3.21416,3111.3,3111.1,1.6388]
[1731725164771,0.03641226,3111.2,3111.1,1.6388]
[1731725164970,3.21419,3111.2,3111.1,1.6388]
[1731725165175,3.25060226,3111.2,3111.1,0.875]
[1731725165592,0.03641226,3111.2,3111.1,0.875]
[1731725165761,3.53924723,3111.2,3111.1,0.875]
[1731725165961,3.25060226,3111.2,3111.1,0.875]
[1731725171395,3.21522,3110.2,3110.1,0.64877503]
[1731725171617,3.25105709,3110.2,3110.1,0.64877503]
[1731725175366,0.03583709,3110.2,3110.1,0.64877503]
[1731725175603,0.8303,3110.6,3109.6,4.68355237]
[1731725175812,3.21528,3110.2,3109.6,5.15190761]
[1731725176017,0.03578277,3110.1,3109.6,5.15190761]
[1731725176665,3.21504,3110.4,3109.6,5.15190761]
[1731725176870,3.21504,3110.4,3109.7,3.8211]
[1731725176871,0.03572844,3110.0,3109.7,3.8211]
[1731725177079,3.21504,3110.4,3109.8,1.13677276]
[1731725177287,0.0356741,3109.9,3109.8,1.76627863]
[1731725177567,3.2146,3110.8,3109.9,0.8211]
[1731725177568,3.21463,3110.8,3109.9,0.8211]
[1731725177767,3.21414,3111.3,3110.0,3.79814309]
[1731725177768,0.0360779,3110.7,3110.0,3.79814309]
[1731725177994,0.8303,3111.2,3109.9,0.8211]
[1731725178301,3.21553,3109.9,3109.8,0.62950587]
[1731725178682,3.25117334,3109.9,3109.8,0.62950587]
[1731725181017,3.25117334,3109.9,3109.8,1.45060587]
[1731725181018,0.03564334,3109.9,3109.8,1.45060587]
[1731725181227,0.8303,3111.0,3110.2,3.21521]
[1731725181228,3.21441,3111.0,3110.2,3.21521]
[1731725181428,3.2139,3111.5,3110.0,0.01]
[1731725181429,0.03440431,3110.9,3110.5,3.79814309]
[1731725181752,0.03440431,3110.9,3110.7,4.03579]
[1731725182020,3.21397,3111.5,3110.8,0.71000777]
[1731725182219,0.03467577,3111.4,3110.8,0.71000777]
[1731725182388,3.21406,3111.4,3110.7,0.8211]
[1731725182590,3.24871148,3111.3,3110.7,0.8211]
[1731725182918,0.03462148,3111.3,3110.7,0.8211]
[1731725183086,0.03462148,3111.3,3110.8,3.2146]
[1731725183288,0.03462148,3111.3,3110.9,3.0]
[1731725183502,3.2137,3111.7,3111.0,0.8211]
[1731725183710,0.03456719,3111.2,3111.1,7.09966728]
[1731725183893,3.21353,3111.9,3111.1,7.09966728]
[1731725183894,3.21353,3111.9,3111.2,4.03528]
[1731725184090,3.21353,3111.9,3111.3,3.06427232]
[1731725184305,0.03491186,3111.8,3111.3,3.06427232]
[1731725184710,0.03491186,3111.8,3111.3,6.27827232]
[1731725184895,0.03491186,3111.8,3111.6,3.0]
[1731725185092,0.03491186,3111.8,3111.5,0.8211]
[1731725185093,3.21358,3111.8,3111.5,0.8211]
[1731725185525,0.03485759,3111.7,3111.5,0.8211]
[1731725185932,3.21295,3112.4,3111.5,0.8211]
[1731725186132,0.03358065,3111.6,3111.5,0.8211]
[1731725186399,3.21402,3111.4,3110.9,1.45398088]
[1731725186597,0.8303,3111.9,3110.9,1.45398088]
[1731725186598,3.21438,3111.1,3110.9,0.8211]
[1731725186936,0.8303,3111.9,3110.1,7.01337309]
[1731725186937,3.24767895,3111.0,3110.5,0.8211]
[1731725187848,0.03326895,3111.0,3110.5,0.8211]
[1731725188018,0.03326895,3111.0,3110.5,3.8211]
[1731725188346,0.8303,3111.4,3110.5,8.32285309]
[1731725188655,3.21416,3111.3,3110.6,0.64466821]
[1731725189005,3.2143,3111.1,3110.6,0.64466821]
[1731725189212,0.03326171,3111.0,3110.6,0.64466821]
[1731725189445,3.21374,3111.7,3110.5,7.61924309]
[1731725189744,0.8303,3111.8,3110.5,7.61924309]
[1731725189745,3.21448,3111.0,3110.5,7.61924309]
[1731725189944,3.2142,3111.2,3110.5,7.61924309]
[1731725190149,3.2145,3110.9,3110.5,7.61924309]
[1731725190448,0.03315312,3110.8,3110.5,7.61924309]
[1731725190742,3.24775312,3110.8,3110.5,7.61924309]
[1731725191145,0.03315312,3110.8,3110.5,7.61924309]
[1731725191304,0.03315312,3110.8,3110.5,8.3811674]
[1731725191651,3.2145,3110.9,3110.5,0.8211]
[1731725191852,3.24781512,3110.8,3110.5,0.8211]
[1731725192608,3.21473,3110.7,3110.5,0.8211]
[1731725192903,3.2479065,3110.6,3110.2,3.8245]
[1731725193129,3.2479065,3110.6,3110.2,0.8245]
[1731725193772,0.0330965,3110.6,3110.2,0.88879797]
[1731725193929,3.21421,3111.2,3110.5,4.58424309]
[1731725194132,3.2141,3111.3,3110.5,4.58424309]
[1731725194328,0.03332641,3111.1,3110.7,3.0]
[1731725194569,0.0333807,3111.2,3110.7,3.0]
[1731725194739,0.03327211,3111.0,3110.7,3.0]
[1731725195067,0.03321782,3110.9,3110.7,3.0]
[1731725195427,3.21419,3111.2,3110.7,3.0]
[1731725195767,0.03332641,3111.1,3110.7,3.0]
[1731725196140,0.03332641,3111.1,3110.7,3.21469]
[1731725196325,3.214,3111.4,3110.7,4.61607431]
[1731725196524,0.03327211,3111.0,3110.7,4.61607431]
[1731725196726,3.21417,3111.3,3110.6,3.0]
[1731725196965,0.03321782,3110.9,3110.6,3.0]
[1731725197134,3.21417,3111.3,3110.6,3.0]
[1731725197336,0.03316351,3110.8,3110.6,6.21473]
[1731725197538,3.21417,3111.3,3110.7,3.2147]
[1731725197745,3.21392,3111.5,3110.7,3.2147]
[1731725197953,0.03221483,3111.2,3110.7,3.2147]
[1731725198124,3.21392,3111.5,3110.7,3.2147]
[1731725198325,0.03216054,3111.1,3110.8,0.06428475]
[1731725198531,3.613261,3111.5,3110.8,3.27885475]
[1731725198762,0.7799,3111.7,3110.6,3.0]
[1731725198957,0.03232341,3111.4,3110.6,6.21474]
[1731725199157,3.21409,3111.3,3110.6,6.21474]
[1731725199357,3.24635912,3111.3,3110.6,6.21474]
[1731725199556,3.24635912,3111.3,3110.6,7.61613831]
[1731725200040,3.24635912,3111.3,3110.7,0.06428479]
[1731725200444,3.24635912,3111.3,3110.8,0.7861]
[1731725200655,3.21432,3111.1,3110.8,0.7861]
[1731725200860,0.03210625,3111.0,3110.8,0.7861]
[1731725201791,0.03098174,3110.9,3110.8,0.7861]
[1731725201947,3.21421,3111.2,3110.8,0.7861]
[1731725202148,3.24539033,3111.1,3110.8,0.7861]
[1731725202974,0.03109033,3111.1,3110.8,0.7861]
[1731725203187,3.21409,3111.3,3110.8,1.16471]
[1731725203688,0.03114462,3111.2,3111.0,3.0]
[1731725203845,0.03114462,3111.2,3111.1,7.75090981]
[1731725204047,3.21328,3112.1,3111.3,3.0]
[1731725204248,0.02945277,3112.0,3111.5,6.21386]
[1731725204500,0.02945277,3112.0,3111.6,0.06427167]
[1731725204792,3.21316,3112.2,3111.6,1.09208584]
[1731725205003,0.7799,3112.3,3111.6,1.09208584]
[1731725205004,0.03404658,3112.1,3111.6,1.02781417]
[1731725205151,3.21328,3112.1,3111.4,7.65443281]
[1731725205474,0.7799,3112.3,3111.4,7.65443281]
[1731725205475,0.03404397,3112.0,3111.6,3.0]
[1731725205863,3.21326,3112.2,3111.6,3.0]
[1731725206054,0.03398136,3111.9,3111.7,3.21367]
[1731725206250,3.21297,3112.4,3111.8,0.7861]
[1731725206478,0.03182636,3112.3,3111.8,0.7861]
[1731725206790,3.24490636,3112.3,3111.8,0.7861]
[1731725207000,0.03182636,3112.3,3111.8,0.7861]
[1731725207557,3.21323,3112.2,3111.8,0.7861]
[1731725207756,3.21297,3112.4,3111.8,0.7861]
[1731725207757,0.03171979,3112.1,3111.8,0.7861]
[1731725207998,3.21297,3112.4,3111.8,0.7861]
[1731725208303,0.03183605,3112.3,3111.8,0.7861]
[1731725209077,3.24492605,3112.3,3111.8,0.7861]
[1731725209277,3.21323,3112.2,3111.8,0.7861]
[1731725209466,3.21323,3112.2,3111.3,3.0]
[1731725209467,3.21376,3111.7,3111.3,3.0]
[1731725209657,3.2135,3111.9,3111.3,3.0]
[1731725209903,3.24517166,3111.8,3111.3,3.0]
[1731725210596,0.03155166,3111.8,3111.3,3.0]
[1731725210803,0.8031,3111.7,3111.0,0.64821356]
[1731725210958,3.21426,3111.2,3110.4,7.01308309]
[1731725211160,3.21443,3111.0,3110.6,0.7871]
[1731725211358,3.21451,3110.9,3110.6,0.7871]
[1731725211562,0.0310098,3110.9,3110.4,3.79814309]
[1731725211908,3.2146,3110.8,3110.4,3.79814309]
[1731725212239,6.4289,3111.0,3110.7,0.6553228]
[1731725212403,3.21452,3110.9,3110.7,0.6553228]
[1731725213119,3.2146,3110.8,3110.7,0.6553228]
[1731725213954,7.23899412,3111.6,3110.7,0.6553228]
[1731725213955,3.21423,3111.2,3110.7,0.6553228]
[1731725214248,3.21381,3111.6,3111.0,3.21439]
[1731725214548,3.21406,3111.4,3111.0,1.40784614]
[1731725214750,3.21406,3111.4,3110.8,0.7871]
[1731725215046,3.21417,3111.3,3110.8,0.7871]
[1731725215256,3.535587,3111.3,3110.8,0.7871]
[1731725215411,3.535587,3111.3,3110.5,0.7871]
[1731725215412,3.21437,3111.1,3110.5,0.7871]
[1731725215621,3.535537,3111.3,3110.5,0.7871]
[1731725215963,3.21412,3111.3,3110.7,3.0]
[1731725216666,3.21421,3111.2,3110.7,3.0]
[1731725217381,0.8031,3111.8,3110.9,0.7871]
[1731725217382,3.21369,3111.7,3110.9,0.7871]
[1731725217522,0.8031,3111.8,3110.9,0.7871]
[1731725217523,3.21378,3111.6,3111.0,3.21439]
[1731725217726,7.23820556,3112.2,3110.4,3.7871]
[1731725217727,0.8031,3111.5,3110.4,3.7871]
[1731725217984,3.21437,3111.1,3110.4,3.7871]
[1731725218123,3.2145,3110.9,3110.4,3.7871]
[1731725218578,3.2145,3110.9,3110.4,0.7871]
[1731725218744,4.0176,3110.9,3110.1,3.7871]
[1731725219065,4.0176,3110.9,3110.1,4.86716431]
[1731725219565,3.21471,3110.7,3110.2,3.0]
[1731725219867,0.8031,3110.9,3110.0,0.64280528]
[1731725220081,0.8031,3110.9,3109.8,0.7871]
[1731725220082,3.2146,3110.8,3109.8,0.7871]
[1731725220230,3.2154,3110.1,3109.8,0.7871]
[1731725220884,3.21541,3110.1,3109.8,0.7871]
[1731725221169,3.21553,3109.9,3109.3,0.7871]
[1731725221483,3.21535,3110.1,3109.4,3.21601]
[1731725221776,3.21535,3110.1,3109.6,0.09]
[1731725222072,3.21546,3110.0,3109.6,0.09]
[1731725222272,3.21552,3110.0,3109.6,0.09]
[1731725222642,3.21522,3110.2,3109.6,0.09]
[1731725222856,3.21552,3110.0,3109.6,0.09]
[1731725223054,0.03850311,3109.9,3109.6,0.09]
[1731725223455,3.25406311,3109.9,3109.6,0.09]
[1731725223659,3.21571,3109.8,3109.6,0.09]
[1731725223863,3.25409491,3109.7,3109.6,0.09]
[1731725224183,0.03835491,3109.7,3109.6,0.09]
[1731725224674,0.0383506,3109.7,3109.6,0.09]
[1731725224844,3.21524,3110.2,3109.5,3.21594]
[1731725225049,0.01,3111.0,3109.3,4.00322]
[1731725225050,0.8031,3111.1,3110.1,3.79814309]
[1731725225277,0.8031,3111.1,3110.3,4.00213]
[1731725225278,7.23185,3111.1,3110.3,4.00213]
[1731725225442,3.2144,3111.0,3110.4,3.06429235]
[1731725225771,4.01746,3111.1,3110.3,4.00213]
[1731725225772,3.2145,3110.9,3110.3,0.7871]
[1731725225974,4.01739,3111.1,3110.5,3.0]
[1731725226126,0.8031,3111.1,3110.5,3.0]
[1731725226528,3.21441,3111.0,3110.5,3.0]
[1731725226768,3.2142,3111.2,3110.5,6.21489]
[1731725227288,3.21441,3111.0,3110.5,0.1]
[1731725227781,3.21428,3111.2,3110.6,0.31]
[1731725227948,3.21434,3111.1,3110.6,0.31]
[1731725228275,3.21428,3111.2,3110.6,0.41]
[1731725228436,4.01709,3111.4,3110.9,4.58524309]
[1731725228437,3.21399,3111.4,3110.9,4.58524309]
[1731725228628,3.2136,3111.8,3111.1,3.21426]
[1731725228828,3.2136,3111.8,3111.2,3.06427541]
[1731725229071,0.8031,3112.2,3110.9,0.7871]
[1731725229072,3.21399,3111.4,3110.9,0.7871]
[1731725229246,3.21378,3111.6,3110.9,3.7871]
[1731725229572,3.21392,3111.5,3111.0,0.70017]
[1731725229960,3.21378,3111.6,3111.0,3.97884015]
[1731725230135,3.21378,3111.6,3111.1,3.0]
[1731725230533,3.21336,3112.0,3111.3,3.21407]
[1731725230777,3.21336,3112.0,3111.4,0.0642728]
[1731725231006,3.21336,3112.0,3111.3,3.27834314]
[1731725231384,0.8031,3112.2,3111.3,0.06427314]
[1731725231569,3.21356,3111.9,3111.1,6.99087401]
[1731725231774,3.21356,3111.9,3111.2,0.7890874]
[1731725232373,3.21356,3111.9,3111.3,3.27834538]
[1731725232838,3.21356,3111.9,3111.4,0.09]
[1731725233622,3.21328,3112.1,3111.5,0.7873]
[1731725234117,3.21328,3112.1,3111.6,0.06427187]
[1731725234320,3.21306,3112.3,3111.6,0.73693619]
[1731725234623,3.21337,3112.0,3111.6,0.73693619]
[1731725236013,0.7858,3112.5,3111.5,0.8773]
[1731725236213,3.21363,3111.8,3111.5,0.09]
[1731725237898,0.03603882,3111.7,3111.5,0.09]
[1731725238118,3.24970882,3111.7,3111.5,0.09]
[1731725238340,3.21367,3111.7,3111.5,0.09]
[1731725238504,0.03924045,3111.6,3111.5,0.09]
[1731725239518,0.03924045,3111.6,3111.5,8.47942009]
[1731725239732,3.2127,3112.7,3112.1,0.7873]
[1731725239934,3.21235,3113.0,3112.2,3.0]
[1731725240101,0.04676919,3112.7,3112.2,3.0]
[1731725240305,3.21287,3112.5,3112.2,3.0]
[1731725240838,0.06013182,3112.7,3112.2,3.0]
[1731725240839,3.2127,3112.7,3112.2,3.0]
[1731725241190,0.05256196,3112.6,3112.2,3.0]
[1731725242529,0.05256196,3112.6,3112.3,3.2773064]
[1731725242736,0.03825892,3112.6,3112.4,0.62773064]
[1731725243200,3.21215,3113.2,3112.5,0.06425185]
[1731725243405,3.21215,3113.2,3112.3,3.21305]
[1731725243406,0.03825892,3112.6,3112.3,3.21305]
[1731725243597,3.21215,3113.2,3112.4,3.06425152]
[1731725243797,0.03507068,3112.6,3112.4,3.0]
[1731725244035,3.2124,3113.0,3112.4,3.0]
[1731725244393,0.03848511,3112.9,3112.4,3.0]
[1731725244593,3.21272,3112.7,3112.2,3.0]
[1731725244793,3.21265,3112.7,3112.2,3.0]
[1731725245028,0.03832917,3112.6,3112.2,3.0]
[1731725246040,3.21246,3112.9,3112.2,3.0]
[1731725246252,3.25102709,3112.8,3112.2,3.0]
[1731725246404,0.6848258,3112.8,3112.1,0.7873]
[1731725246601,3.21324,3112.2,3111.8,0.7966]
[1731725247000,3.21296,3112.4,3111.8,4.01015]
[1731725247313,4.69933635,3113.5,3111.5,0.77397183]
[1731725247314,3.21245,3112.9,3112.1,3.79814309]
[1731725247518,3.21245,3112.9,3112.2,3.21309]
[1731725247826,3.21245,3112.9,3112.3,4.00965]
[1731725248034,3.21245,3112.9,3112.3,4.07390292]
[1731725248329,3.25492735,3112.8,3112.3,0.86085292]
[1731725248497,3.25492735,3112.8,3112.3,0.7966]
[1731725248853,0.04231735,3112.8,3112.3,0.7966]
[1731725249579,3.21245,3112.9,3112.3,0.7966]
[1731725251347,3.21225,3113.1,3112.6,3.0]
[1731725251845,0.7718,3113.3,3112.6,3.0]
[1731725251846,3.21212,3113.2,3112.6,3.0]
[1731725252069,3.21234,3113.0,3112.6,3.0]
[1731725252269,3.21212,3113.2,3112.6,3.0]
[1731725252472,3.21225,3113.1,3112.6,3.0]
[1731725252689,3.21192,3113.4,3112.7,0.8009]
[1731725252992,3.21187,3113.5,3112.9,7.01057309]
[1731725253290,3.21202,3113.4,3112.9,3.79814309]
[1731725253525,3.21137,3114.0,3112.7,0.8009]
[1731725253526,3.21203,3113.3,3112.7,0.8009]
[1731725253787,0.7765,3113.3,3112.7,0.8009]
[1731725253984,3.21227,3113.1,3112.7,0.8009]
[1731725254343,3.21207,3113.3,3112.7,0.8009]
[1731725254545,3.21185,3113.5,3112.7,0.8009]
[1731725254778,3.21213,3113.2,3112.7,3.69559639]
[1731725255351,3.610845,3113.4,3112.7,6.90821639]
[1731725255688,3.21185,3113.5,3112.7,6.90821639]
[1731725255913,3.21164,3113.7,3113.0,2.89469639]
[1731725256058,3.21173,3113.6,3113.0,2.89469639]
[1731725256460,3.21182,3113.5,3113.1,0.8009]
[1731725257691,3.21199,3113.4,3113.1,0.8009]
[1731725257900,3.21151,3113.8,3112.7,2.89469639]
[1731725257901,0.7765,3113.8,3112.7,2.89469639]
[1731725258195,3.21254,3112.8,3112.5,3.8009]
[1731725258747,3.2127,3112.7,3112.5,0.8009]
[1731725259384,3.2127,3112.7,3112.4,2.89469639]
[1731725259903,0.7765,3113.1,3112.3,0.8009]
[1731725260193,0.7765,3113.1,3111.2,0.38219569]
[1731725260194,0.7765,3112.8,3111.7,0.8009]
[1731725260348,3.21335,3112.1,3111.7,0.8009]
[1731725260544,3.21337,3112.0,3111.7,0.8009]
[1731725260945,3.21335,3112.1,3111.7,0.8009]
[1731725261679,3.21306,3112.3,3111.7,0.8009]
[1731725261680,3.21283,3112.6,3111.8,2.89469639]
[1731725261896,0.7765,3112.8,3112.2,0.8009]
[1731725262121,3.21236,3113.0,3112.2,0.8009]
[1731725262395,3.21261,3112.8,3112.2,0.8009]
[1731725263792,3.21236,3113.0,3112.2,0.8009]
[1731725263966,3.21265,3112.7,3112.2,0.8009]
[1731725264837,3.21251,3112.9,3112.2,4.07827607]
[1731725265132,3.533761,3112.9,3112.3,3.21302]
[1731725265436,3.21251,3112.9,3112.3,3.21302]
[1731725265948,3.21251,3112.9,3112.2,3.86515607]
[1731725266427,3.21258,3112.8,3112.2,3.86515607]
[1731725266640,3.21258,3112.8,3112.2,3.8009]
[1731725266991,3.21268,3112.7,3112.2,3.8009]
[1731725268673,3.21223,3113.1,3112.3,3.27730608]
[1731725268838,3.21203,3113.3,3112.4,10.82649473]
[1731725269040,3.21203,3113.3,3112.6,3.21267]
[1731725269272,3.21203,3113.3,3112.7,3.0]
[1731725269471,3.21203,3113.3,3112.7,6.21262]
[1731725271339,3.97606,3113.8,3112.8,7.82602473]
[1731725271558,3.21178,3113.6,3112.9,3.21242]
[1731725272231,3.21188,3113.5,3112.8,7.82602473]
[1731725272431,3.21188,3113.5,3112.8,9.04901885]
[1731725272834,3.21178,3113.6,3112.9,3.21236]
[1731725274276,3.21206,3113.3,3112.8,4.61358473]
[1731725274976,3.21206,3113.3,3112.8,0.8119]
[1731725275185,3.21224,3113.1,3112.8,0.8119]
[1731725276384,3.21214,3113.2,3112.8,0.8119]
[1731725276948,3.21206,3113.3,3112.8,0.8119]
[1731725276949,3.21225,3113.1,3112.8,0.8119]
[1731725277394,3.21213,3113.2,3112.8,0.8119]
[1731725278050,3.21226,3113.1,3112.5,7.02474]
[1731725278249,1.406919,3113.2,3112.2,0.8119]
[1731725278250,3.21262,3112.8,3112.2,0.8119]
[1731725278503,0.01,3113.4,3111.7,0.8119]
[1731725278504,3.21305,3112.4,3111.7,0.8119]
[1731725278790,3.21316,3112.2,3111.7,1.43803764]
[1731725280403,3.21316,3112.2,3111.7,4.43803764]
[1731725281156,3.21316,3112.2,3111.7,0.8119]
[1731725281361,3.21361,3111.8,3111.3,0.8119]
[1731725281602,3.21361,3111.8,3111.4,0.23741835]
[1731725281780,3.21361,3111.8,3111.5,0.23741835]
[1731725281993,3.21361,3111.8,3111.3,0.8119]
[1731725282160,3.21361,3111.8,3111.4,0.23725783]
[1731725282507,3.21361,3111.8,3111.3,3.8119]
[1731725282662,3.21361,3111.8,3111.4,0.2371679]
[1731725282863,3.21361,3111.8,3111.3,3.8119]
[1731725283063,3.21361,3111.8,3111.5,0.04]
[1731725283564,3.21371,3111.7,3111.5,0.04]
[1731725284016,3.21378,3111.6,3111.5,0.04]
[1731725286322,3.85640635,3111.6,3111.5,0.04]
[1731725286679,4.62090635,3111.6,3111.5,0.04]
[1731725286907,4.62090635,3111.6,3110.8,0.23]
[1731725287211,3.2144,3111.0,3110.8,0.23]
[1731725288003,3.2145,3110.9,3110.8,0.23]
[1731725288981,3.979,3110.9,3110.8,0.23]
[1731725289183,4.3769,3110.9,3110.8,0.23]
[1731725289370,3.21534,3110.1,3109.9,0.7984]
[1731725289709,1.1624,3110.9,3109.9,0.7984]
[1731725289910,3.21483,3110.6,3109.9,0.7984]
[1731725290210,3.21494,3110.5,3109.9,0.7984]
[1731725290415,3.2146,3110.8,3110.0,2.89774613]
[1731725290633,3.2146,3110.8,3110.1,3.0]
[1731725290919,3.22396,3111.5,3110.3,2.89774613]
[1731725290920,0.7832,3111.2,3110.3,2.89774613]
[1731725291221,3.21462,3110.8,3110.3,2.89774613]
[1731725291710,3.21462,3110.8,3110.4,0.2]
[1731725294119,3.99742,3111.2,3110.4,0.2]
[1731725294271,3.21442,3111.0,3110.4,1.40732924]
[1731725295179,3.2145,3110.9,3110.4,1.40732924]
[1731725297005,3.2145,3110.9,3110.4,1.20732924]
[1731725298328,3.21378,3111.6,3110.8,0.7984]
[1731725298528,0.7832,3111.8,3111.1,3.21421]
[1731725298529,3.21359,3111.8,3111.1,3.21421]
[1731725298730,3.21359,3111.8,3111.2,0.7984]
[1731725299032,3.21359,3111.8,3111.2,4.01254]
[1731725299327,3.21347,3111.9,3111.3,3.936755]
[1731725299536,6.42704,3111.9,3111.3,0.722675]
[1731725299833,3.21368,3111.7,3111.3,0.722675]
[1731725300834,3.21347,3111.9,3111.3,0.722675]
[1731725301236,3.21336,3112.0,3111.3,0.722675]
[1731725301828,3.21355,3111.9,3111.3,0.722675]
[1731725302161,3.21336,3112.0,3111.2,0.7984]
[1731725302162,3.21365,3111.8,3111.2,0.7984]
[1731725302321,3.21368,3111.7,3111.2,0.7984]
[1731725302516,3.21368,3111.7,3111.2,1.499674]
[1731725303807,3.21384,3111.6,3111.2,1.499674]
[1731725304142,3.21437,3111.1,3110.9,0.7984]
[1731725304290,3.21437,3111.1,3110.3,3.21503]
[1731725304291,3.21437,3111.1,3110.6,0.7984]
[1731725305203,3.21451,3110.9,3110.6,0.7984]
[1731725306868,3.21437,3111.1,3110.6,0.7984]
[1731725307030,3.21441,3111.0,3110.6,0.7984]
[1731725307565,3.21459,3110.9,3110.6,0.7984]
[1731725308228,3.21441,3111.0,3110.6,0.7984]
[1731725308457,3.21462,3110.8,3110.6,0.7984]
[1731725309052,0.8315,3110.8,3110.2,0.8037]
[1731725309251,3.21499,3110.5,3110.3,0.23774418]
[1731725309440,3.21499,3110.5,3110.2,0.8037]
[1731725311061,3.21499,3110.5,3110.0,3.0]
[1731725313488,3.21499,3110.5,3109.8,3.8037]
[1731725313689,3.21499,3110.5,3109.8,0.8037]
[1731725313690,3.21503,3110.4,3109.8,0.8037]
[1731725314714,3.21526,3110.2,3109.8,0.8037]
[1731725314852,3.21526,3110.2,3109.8,3.8037]
[1731725315053,3.21502,3110.4,3109.8,3.8037]
[1731725316268,3.21492,3110.5,3109.8,3.8037]
[1731725316682,3.21503,3110.4,3109.8,7.01931]
[1731725318160,3.21484,3110.6,3109.8,8.33259761]
[1731725318865,3.21484,3110.6,3109.9,0.06430429]
[1731725319190,3.21484,3110.6,3110.0,3.21534]
[1731725321805,3.21431,3111.1,3110.4,7.0069]
[1731725321961,3.2141,3111.3,3110.3,2.89774613]
[1731725321962,0.8255,3111.3,3110.3,2.89774613]
[1731725322299,0.8255,3111.3,3110.1,0.7919]
[1731725322300,3.21471,3110.7,3110.1,7.00715]
[1731725322466,3.21471,3110.7,3110.1,7.00722]
[1731725323669,3.2146,3110.8,3110.3,2.89774613]
[1731725325928,4.0399,3111.0,3110.3,2.89774613]
[1731725326124,3.21421,3111.2,3110.5,4.00672]
[1731725326361,4.03935,3111.6,3110.9,3.21447]
[1731725326572,4.03935,3111.6,3111.0,0.7919]
[1731725326871,3.21368,3111.7,3111.0,4.00628]
[1731725327175,3.21368,3111.7,3111.1,3.21427]
[1731725327521,0.8255,3111.9,3111.1,3.21427]
[1731725327756,3.21358,3111.8,3111.1,3.21427]
[1731725327960,3.21358,3111.8,3111.0,3.68964613]
[1731725327961,3.21377,3111.7,3111.0,3.68964613]
[1731725328368,3.21377,3111.7,3111.0,6.90401613]
[1731725328570,3.21358,3111.8,3111.1,3.21422]
[1731725328779,3.21358,3111.8,3111.2,3.69038661]
[1731725328930,3.21336,3112.0,3111.2,3.69038661]
[1731725329129,3.21336,3112.0,3111.3,3.21402]
[1731725329372,4.03318,3112.2,3111.5,4.04178]
[1731725330024,3.21326,3112.1,3111.5,4.04178]
[1731725330229,3.21344,3112.0,3111.5,0.8279]
[1731725330769,3.21318,3112.2,3111.5,1.1079]
[1731725330937,1.21772,3112.5,3111.5,1.1079]
[1731725331141,3.21326,3112.1,3111.5,1.1079]
[1731725332376,3.21326,3112.1,3111.5,5.36512161]
[1731725333130,3.21338,3112.0,3111.5,2.15126161]
[1731725333370,3.21326,3112.1,3111.5,2.15126161]
[1731725334536,3.21348,3111.9,3111.5,2.15126161]
[1731725334933,3.21306,3112.3,3111.6,3.21377]
[1731725335273,3.21318,3112.2,3111.6,4.07316864]
[1731725335436,3.21318,3112.2,3111.6,4.00889616]
[1731725335636,3.21318,3112.2,3111.7,0.58801578]
[1731725335837,3.21306,3112.3,3111.7,0.58801578]
[1731725336037,3.21306,3112.3,3111.7,0.59801578]
[1731725336244,3.21327,3112.1,3111.7,0.59801578]
[1731725336597,3.21327,3112.1,3111.7,0.01]
[1731725337075,3.21306,3112.3,3111.7,3.22367]
[1731725337582,4.69718384,3112.8,3111.8,4.04145]
[1731725337583,3.21268,3112.7,3111.8,4.04145]
[1731725337746,3.21295,3112.4,3111.8,4.04145]
[1731725338269,3.21276,3112.6,3111.9,3.21347]
[1731725338779,3.21288,3112.5,3111.9,3.21347]
[1731725339139,3.21281,3112.6,3111.9,3.21347]
[1731725339344,3.21281,3112.6,3112.0,3.0]
[1731725339711,3.21281,3112.6,3112.1,0.8279]
[1731725339985,3.21257,3112.8,3112.1,4.04114]
[1731725340359,3.21257,3112.8,3112.1,0.8279]
[1731725340687,3.21257,3112.8,3112.2,3.21309]
[1731725340889,3.21285,3112.5,3112.2,0.01]
[1731725341044,3.21303,3112.4,3112.2,0.01]
[1731725341466,3.21276,3112.6,3112.2,0.01]
[1731725341667,3.21285,3112.5,3112.2,0.01]
[1731725342183,3.21297,3112.4,3112.2,0.01]
[1731725345098,3.21297,3112.4,3112.1,0.8279]
[1731725346496,3.21276,3112.6,3112.1,0.8279]
[1731725346697,0.01,3113.5,3112.1,0.8279]
[1731725346698,3.21254,3112.8,3112.2,6.11088613]